Cogmind - Beta 14 @@@ ROGUE MODE // 2025.01.05 @ 09:37:38 Player: Demo Result: Destroyed by Striker with Plasma Lance Performance ------------- Evolutions (7) 3500 Regions Visited (21) 4200 Robots Destroyed (238) 1190 Value Destroyed (10393) 10393 Prototype IDs (64) 1280 Alien Tech Used (2) 400 Bonus (2715) 2715 TOTAL SCORE: 23678 Bonus ------- High Alert Combat Kills 778 Follower Combat Kills 707 MAIN.C Attacked Warlord 500 Warlord Defense Kills 274 Scanned by Researcher 500 Friendly Fire -44 Cogmind --------- Core Integrity 0/1300 Matter 248/300 Energy 502/720 System Corruption 37% Temperature Cool (0) Movement Walking (100) Location -3/Testing Parts ------- > --- POWER (2) -------- Multi-Antimatter Reactor > --- PROPULSION (5) --- Myomer Exoskeleton Hovering Antigrav Exoskeleton > --- UTILITY (10) ----- Large Storage Unit Advanced Energy Well Experimental Signal Interpreter Experimental Targeting Computer Advanced Target Analyzer Experimental Target Analyzer AEGIS Remote Shield System Mapper > --- WEAPON (4) ------- Helical Railgun Multirail Vibroblade > --- INVENTORY (15) --- Large Storage Unit Advanced Matter Compressor (400) Advanced Weight Redist. System Stasis Canceller Experimental ECM Suite Advanced Reaction Control System Advanced Thermal Shield High-powered Disruptor Cannon Nanosword Peak State ------------ > --- POWER ------------ Multi-Antimatter Reactor > --- PROPULSION ------- Myomer Exoskeleton Hovering Antigrav Exoskeleton > --- UTILITY ---------- Armored Scrap Engine Large Storage Unit Experimental Signal Interpreter Experimental Targeting Computer Advanced Target Analyzer Advanced Target Analyzer Experimental Target Analyzer Experimental ECM Suite System Mapper > --- WEAPON ----------- Improved Potential Cannon Directed Plasma Construct/G Vibroblade > --- INVENTORY -------- Cooled Antimatter Reactor Experimental Cooling System Large Storage Unit Advanced Matter Compressor Advanced Weight Redist. System Advanced Target Analyzer Stasis Canceller Advanced Reaction Control System Advanced Thermal Shield High-powered Disruptor Cannon Helical Railgun Multirail Gamma Bomb Array Nanosword [Rating: 197] Favorites ----------- Power Constructs Engine Light Ion Engine Power Core Light Neutrino Core Reactor Constructs Propulsion Constructs Treads Light Treads Leg Myomer Exoskeleton Wheel Wheel Hover Unit Constructs Flight Unit Field Propulsion Array Utility Armored Scrap Engine Device Armored Scrap Engine Storage Huge Storage Unit Processor Advanced Signal Interpreter Hackware System Mapper Protection Improved Medium Armor Plating Weapon Constructs Energy Gun Constructs Energy Cannon Constructs Ballistic Gun Precision Assault Rifle Ballistic Cannon Battle Cannon Launcher Improved Grenade Launcher Special Weapon Improved Remote Datajack Impact Weapon Power Maul Slashing Weapon Centrium Greatsword Build | -11 -10 -10 -10 -9 -7 -7 -7 -6 -5 -5 -5 -5 -4 -4 -4 -4 -4 -4 -3 -3 -3 ------- Run | Yrd Mat Min Sub Rec Fac Was Fac Fac Fac Upp Upp Zhi Pro Fac Was Fac Upp War Pro Res Tes Slots Evolved 14 | . . . . . 6 . . 2 2 . . . . 2 . . . . . 2 . Power 1 | . . . . . . . . 1 . . . . . . . . . . . . . Propulsion 3 | . . . . . 3 . . . . . . . . . . . . . . . . Utility 8 | . . . . . 3 . . 1 2 . . . . 1 . . . . . 1 . Weapon 2 | . . . . . . . . . . . . . . 1 . . . . . 1 . Parts Attached 285 | 2 . 3 10 15 2 1 26 11 13 12 4 8 21 8 8 17 7 1 8 9 99 Power 6 | . . . 1 . . . . . . . . . 1 . . 1 . . . . 3 Engine 3 | . . . 1 . . . . . . . . . 1 . . . . . . . 1 Core 1 | . . . . . . . . . . . . . . . . 1 . . . . . Reactor 2 | . . . . . . . . . . . . . . . . . . . . . 2 Propulsion 31 | 2 . . 1 3 . . 2 . . . . 1 . 2 1 3 . . . . 16 Treads 4 | 2 . . . . . . 2 . . . . . . . . . . . . . . Leg 4 | . . . . . . . . . . . . 1 . . . . . . . . 3 Wheel 7 | . . . 1 3 . . . . . . . . . 2 1 . . . . . . Hover 14 | . . . . . . . . . . . . . . . . 2 . . . . 12 Flight 2 | . . . . . . . . . . . . . . . . 1 . . . . 1 Utility 130 | . . . 2 2 2 . 10 3 9 7 3 5 9 3 3 10 5 1 4 3 49 Device 80 | . . . 1 1 1 . 7 1 5 5 3 3 8 1 1 6 4 1 2 1 29 Storage 18 | . . . 1 1 1 . 1 1 . . . . . 1 1 . 1 . 1 . 9 Processor 19 | . . . . . . . 1 . 2 . . . 1 . . 3 . . 1 2 9 Hackware 2 | . . . . . . . 1 . . . . . . . . . . . . . 1 Protection 11 | . . . . . . . . 1 2 2 . 2 . 1 1 1 . . . . 1 Artifact . | . . . . . . . . . . . . . . . . . . . . . . Weapon 118 | . . 3 6 10 . 1 14 8 4 5 1 2 11 3 4 3 2 . 4 6 31 Energy Gun 12 | . . 1 . . . . 3 . 1 1 . . 1 . 2 . . . . . 3 Energy Cannon 13 | . . . . 2 . . 2 1 . 2 . . . . 2 . . . . . 4 Ballistic Gun 27 | . . 1 3 2 . . 5 2 1 1 . . 6 1 . . . . . . 5 Ballistic Cannon 4 | . . . 1 2 . . . . . . . . . . . . . . . . 1 Launcher 27 | . . 1 2 3 . 1 4 1 1 1 1 . 3 2 . . 1 . 3 . 3 Special Weapon 5 | . . . . . . . . . . . . 1 . . . 2 . . . . 2 Impact Weapon 15 | . . . . 1 . . . 4 1 . . 1 . . . 1 1 . 1 5 . Slashing Weapon 15 | . . . . . . . . . . . . . 1 . . . . . . 1 13 Piercing Weapon . | . . . . . . . . . . . . . . . . . . . . . . Special Melee Weapon . | . . . . . . . . . . . . . . . . . . . . . . Unidentified Prototypes 37 | . . . . 1 . . 2 . . . 1 4 . . . 2 . . . 1 26 Corrupted Parts 1 | . . . . . . . 1 . . . . . . . . . . . . . . System Corruption 1 | . . . . . . . 1 . . . . . . . . . . . . . . Parts Lost 73 | . . . 2 2 . 2 . 1 . 2 2 2 9 7 3 1 . 1 2 2 35 Power 5 | . . . . . . 1 . . . . . . 2 1 . . . . 1 . . Propulsion 17 | . . . . 1 . . . 1 . . . . . 1 . 1 . . . . 13 Utility 29 | . . . . . . . . . . 1 2 2 4 4 1 . . 1 . 2 12 Weapon 22 | . . . 2 1 . 1 . . . 1 . . 3 1 2 . . . 1 . 10 Highest Loss Streak 9 | . . . 1 2 . 1 . 1 . 1 1 2 3 4 3 1 . 1 1 2 9 To Critical Strikes 2 | . . . . . . . . . . . . . . . . . . . . . 2 Average Slot Usage (%) 61 | . 28 51 86 83 52 50 60 59 63 62 61 53 64 63 47 36 63 64 55 39 67 Engine 3 | . . . 5 12 7 3 2 4 4 4 2 . 2 . . 2 4 5 2 . . Reactor 1 | . . . . . . . . . . . . 3 5 5 . . . . . . 3 Treads 1 | . 28 28 15 2 7 . 1 . 1 . . . . . . . . . . . . Leg 2 | . . . . 4 . . 5 1 . . 1 1 4 5 5 5 4 5 5 2 3 Wheel 2 | . . . 12 16 7 12 . . . 5 3 . . . 6 . . . . . . Hover 1 | . . . . . . . . 4 3 . . 3 . . . 1 . . . . 3 Device 16 | . . . 12 13 7 7 19 16 20 22 21 19 22 20 8 8 14 16 14 9 10 Storage 4 | . . . 12 5 6 7 7 6 5 5 5 5 5 6 7 . 4 5 4 . 4 Processor 10 | . . . . . . . 1 6 7 5 5 5 9 6 5 11 16 15 17 23 22 Protection 1 | . . . . . . . . 3 5 5 4 . . 3 5 . . . . . . Energy Gun 1 | . . 11 5 . . 2 5 . 1 3 . . 2 5 3 1 . . . . 1 Energy Cannon 1 | . . . . 3 . 1 1 5 4 1 5 . 1 2 1 . . . . . . Ballistic Gun 3 | . . 9 8 11 7 1 3 3 3 1 1 . 5 1 . . 5 5 2 . . Launcher 1 | . . 2 5 3 . 4 . . . 3 3 . . 4 2 . 4 5 2 . . Impact Weapon 1 | . . . . 4 7 1 . 2 . . . 4 . . . . 5 5 4 1 . Peak Build Rating 197 | 2 2 4 14 31 35 35 64 80 92 86 92 102 103 108 105 109 113 104 101 92 197 Average Rating 87 | 1 2 3 9 22 33 33 51 72 89 83 86 90 98 98 74 70 101 101 91 81 146 On Entrance 59 | . 2 2 4 14 31 34 34 64 80 86 86 87 98 99 92 45 102 101 101 74 74 Naked Turns . | . . . . . . . . . . . . . . . . . . . . . . Heaviest Build 131 | . . 5 17 24 22 23 41 117 127 131 124 117 121 119 115 14 38 36 35 6 85 Greatest Support 158 | 3 3 3 10 20 32 46 152 152 140 59 63 63 63 63 32 33 56 56 63 63 158 Greatest Overweight (x) 7 | . . 1 1 5 2 2 1 1 2 3 3 1 1 7 6 1 1 . 4 1 1 Average Overweight (x) . | . . . . . . . . . . 2 1 1 1 1 . . . . . . . Largest Inventory Capacity 25 | 5 5 5 8 10 10 10 15 25 25 25 25 25 25 25 25 5 5 5 5 5 15 Average Capacity 16 | 5 5 5 7 6 9 10 13 24 25 25 25 25 25 25 15 5 5 5 5 5 13 Most Carried 25 | 5 5 5 8 10 6 6 15 25 25 25 25 25 25 25 20 5 5 5 5 5 15 Average Carried 15 | 2 4 3 6 6 5 5 12 22 24 24 23 24 22 22 12 4 4 4 4 4 13 Final Capacity 25 | 5 5 5 8 5 10 10 15 25 25 25 25 25 25 25 5 5 5 5 5 5 15 Final Carried 25 | 5 5 5 8 5 6 5 15 25 25 24 24 25 22 21 5 5 5 4 4 5 10 Scrap Engine Consumption 352 | . . . . 40 . 3 47 35 28 7 7 6 7 5 7 26 9 . 3 18 104 Constructs Created 17 | . . . . 2 . 3 . . . . . . 1 . . 4 . . . . 7 Constructs Modified 123 | . . . . 4 3 2 21 12 12 5 3 2 6 . . 1 13 . 1 6 32 Class Distribution -------------------- 54% | Construct 14% | Assassin 11% | Scavenger-Mutant 10% | Mutant 5% | Scout Dominant Class ---------------- Mutant | -10/Materials Mutant | -10/Mines Mutant | -10/Subcaves Construct | -9/Recycling Mutant | -7/Factory Construct | -7/Waste Construct | -7/Factory Construct | -6/Factory Construct | -5/Factory Construct | -5/Upper Caves Construct | -5/Upper Caves Construct | -5/Zhirov Construct | -4/Proximity Caves Tank | -4/Factory Mutant | -4/Waste Mutant | -4/Factory Assassin | -4/Upper Caves Assassin | -4/Warlord Assassin | -3/Proximity Caves Scout | -3/Research Scavenger-Mutant | -3/Testing Resources | -11 -10 -10 -10 -9 -7 -7 -7 -6 -5 -5 -5 -5 -4 -4 -4 -4 -4 -4 -3 -3 -3 ----------- Run | Yrd Mat Min Sub Rec Fac Was Fac Fac Fac Upp Upp Zhi Pro Fac Was Fac Upp War Pro Res Tes Matter Collected 8570 | 182 . 155 154 553 . . 604 370 516 807 349 121 1328 . 326 7 542 . 529 104 1923 Remotely 702 | . . . . . . . . . . . . . 702 . . . . . . . . Salvage Created 11947 | . . 167 120 532 . 261 692 686 515 877 642 106 788 576 178 7 774 36 557 375 4058 Parts 551 | . . 10 13 32 . 2 43 32 33 39 18 1 40 24 1 . . 1 13 17 232 Haulers Intercepted 5 | . . . . . . . 1 . . . . . . . . . . . . . 4 Recyclers Shooed 7 | . . 1 . 2 . . 1 2 . . . . . . . . . . . 1 . Parts Field Recycled 1 | . . . . . . . . . . . . . 1 . . . . . . . . Retrieved Matter 15 | . . . . . . . . . . . . . 15 . . . . . . . . Parts Self-Destructed 103 | . . . 9 . . . . . . 37 8 . 34 . . . 3 . 12 . . Prevented 7 | . . . . . . . . . . 2 . . . . . . 5 . . . . Kills | -11 -10 -10 -10 -9 -7 -7 -7 -6 -5 -5 -5 -5 -4 -4 -4 -4 -4 -4 -3 -3 -3 ------- Run | Yrd Mat Min Sub Rec Fac Was Fac Fac Fac Upp Upp Zhi Pro Fac Was Fac Upp War Pro Res Tes Combat Hostiles Destroyed 157 | . . 3 5 5 . 1 12 8 6 17 12 . 15 6 1 . 1 2 20 4 39 Melee 21 | . . . . . . . 1 . . . . . 1 . . . . . . 1 18 Guns 36 | . . 3 . . . . 6 1 3 7 1 . 10 . . . . . . . 5 Cannons 17 | . . . . 4 . . . 3 . 4 2 . . . . . . . . . 4 AOE 69 | . . . 5 1 . 1 5 3 3 5 8 . 2 3 1 . 1 2 20 . 9 Classes Destroyed 28 | . . 3 4 5 . 1 6 . . 1 1 . 2 . . . . . . . 5 Worker 25 | . . 1 . . . . 4 4 1 . . . . 5 . . . . . 2 8 Builder 21 | . . . . 2 . . 1 5 4 . . . . . . 1 . . . 1 7 Tunneler 2 | . . 1 . . . . . . 1 . . . . . . . . . . . . Hauler 5 | . . . . . . . 1 . . . . . . . . . . . . . 4 Recycler 11 | . . . . 3 . . 2 2 1 . . . . . . . . . . 1 2 Minesweeper 1 | . . . . . . . . . . 1 . . . . . . . . . . . Mechanic 1 | . . . . . . . . . . . . . . . . . . . . . 1 Drone 4 | . . . . . . . . . . . . . 2 . . . . . 2 . . Turret 2 | . . . 2 . . . . . . . . . . . . . . . . . . Watcher 5 | . . . . . . . 1 2 . . . . . . . . . . . 2 . Swarmer 29 | . . . 4 . . . 3 . . 6 1 . 5 . . . . . 5 4 1 Saboteur 1 | . . . . . . . . . . . . . . . . . . . . . 1 Grunt 54 | . . 3 . . . . 2 4 3 8 7 . 6 . . . . 1 4 . 16 Brawler 5 | . . . . . . . 1 . . 1 . . . . . . . . 2 . 1 Duelist 10 | . . . . . . . 2 . 1 1 1 . . . . . . . 4 . 1 Researcher 8 | . . . . . . . . . . . . . . . . . . . . . 8 Sentry 8 | . . . . 2 . . 1 . . 1 1 . . 1 . . 1 . 1 . . Specialist 1 | . . . . . . . . . . . . . . . . . . . . . 1 Hunter 11 | . . . . . . . 1 2 . . . . . 5 . . . . 2 . 1 Programmer 26 | . . . . . . . 2 2 2 . 2 . 1 . . . . 1 . . 16 Behemoth 1 | . . . . . . . . . . . . . 1 . . . . . . . . Compactor 2 | . . . . . . 1 . . . . . . . . 1 . . . . . . Alpha 7 1 | . . . . . . . . . . . . . . . . . . . . . 1 Cobbler 1 | . . . 1 . . . . . . . . . . . . . . . . . . Subdweller 1 | . . . 1 . . . . . . . . . . . . . . . . . . Scientist 1 | . . . . 1 . . . . . . . . . . . . . . . . . Scrapper 3 | . . . . 3 . . . . . . . . . . . . . . . . . Decomposer 4 | . . . . . . . . . . 2 . . . . . . 2 . . . . Packrat 1 | . . . . . . . . . . . . . . . . . 1 . . . . Samaritan 8 | . . . . . . . . . . . 2 . . . . . 6 . . . . Best Kill Streak 12 | . . 2 4 4 . 1 6 11 4 7 4 . 5 11 1 1 1 2 9 6 12 Combat Bots Only 9 | . . 1 4 2 . 1 3 3 2 7 4 . 5 6 1 . 1 2 9 4 6 Max Kills in Single Turn 5 | . . 1 2 1 . 1 4 5 3 2 2 . 2 4 1 1 1 1 5 3 4 Gunslinging . | . . . . . . . . . . . . . . . . . . . . . . Exploded 5 | . . . 2 1 . 1 2 2 2 2 2 . 2 1 1 . 1 1 5 . 3 Melee 1 | . . . . . . . 1 . . . . . 1 . . . . . . 1 1 Uniques/NPCs Destroyed . | . . . . . . . . . . . . . . . . . . . . . . Combat | -11 -10 -10 -10 -9 -7 -7 -7 -6 -5 -5 -5 -5 -4 -4 -4 -4 -4 -4 -3 -3 -3 -------- Run | Yrd Mat Min Sub Rec Fac Was Fac Fac Fac Upp Upp Zhi Pro Fac Was Fac Upp War Pro Res Tes Hostile Shots Fired 1651 | . . 22 19 23 . 1 72 132 22 64 57 . 162 132 3 53 16 32 33 63 745 Missed 630 | . . 7 8 10 . . 29 34 5 21 20 . 47 68 . 26 8 9 8 18 312 Damage Taken 20531 | . . 221 86 271 . 471 624 1693 428 794 700 460 1863 856 179 569 192 556 643 1302 8623 Core 2480 | . . 15 . 49 . 107 97 112 . 32 64 73 203 42 2 158 . 82 126 192 1126 Absorbed by Shields 377 | . . . . . . . . . . . 14 129 118 45 . . . . . . 71 Redirected to Shielding 227 | . . . . . . . . . . . . 172 . 55 . . . . . . . Ignored by Resistances 568 | . . . . . . . . . . . 54 . 326 188 . . . . . . . Regen/Repaired (Parts) 4898 | . . . . 59 . 117 284 494 334 291 182 71 182 300 100 112 218 . 182 682 1290 Core Remaining (%) 76 | 100 . . . 74 . . 70 86 . . . . 62 . . . . . 64 . . Volleys Fired 430 | . . 22 25 31 . 11 42 40 23 42 39 . 56 18 7 4 6 5 19 . 40 Largest 3 | . . 2 2 2 . 2 2 2 2 2 2 . 2 3 3 1 2 2 2 . 3 Hottest 555 | . . 60 60 108 . 78 100 109 259 225 126 . 272 300 555 64 86 86 86 . 246 Shots Fired 765 | . . 41 30 55 . 22 74 74 47 57 72 . 105 40 21 4 12 9 22 . 80 Gun 407 | . . 38 9 18 . 7 58 28 27 38 27 . 86 18 10 . 6 4 3 . 30 Cannon 207 | . . . . 22 . 4 11 40 18 12 35 . 14 7 4 4 . . . . 36 Launcher 151 | . . 3 21 15 . 11 5 6 2 7 10 . 5 15 7 . 6 5 19 . 14 Special . | . . . . . . . . . . . . . . . . . . . . . . Kinetic 276 | . . 19 5 24 . 7 41 30 24 15 27 . 49 6 . 4 6 4 3 . 12 Thermal 283 | . . . . 16 . . 24 38 21 27 35 . 51 19 14 . . . . . 38 Explosive 124 | . . 3 21 15 . 11 5 6 2 7 10 . 5 3 6 . 6 5 19 . . Electromagnetic 82 | . . 19 4 . . 4 4 . . 8 . . . 12 1 . . . . . 30 Robot Hit Streak 31 | . . 8 4 8 . 13 11 13 18 8 11 . 13 7 23 27 31 9 8 . 12 Robot Miss Streak 7 | . . 4 1 3 . 3 2 3 2 4 3 . 7 1 . . 1 1 2 . 4 Penetration Max 1 | . . . . . . . . . . 1 . . . . . . . 1 . . 1 Secondary Targets 3 | . . . . . . . . . . . . . 2 . . . . . . . 1 Max Gunslinging Chain 1 | . . . . . . . . . . . . . 1 . . . . . . . 1 Shots Hit Robots 621 | . . 26 7 30 . 21 43 50 34 36 46 2 57 29 21 5 34 6 16 10 148 Core Hits 445 | . . 12 22 19 . 10 38 31 20 24 32 . 26 23 2 1 6 7 57 5 110 Critical Kills 20 | . . . . . . . 1 . . 6 3 . 4 . . . 1 . 1 1 3 Critical Parts Destroyed 25 | . . . . . . . 1 3 . 5 4 . 3 . . 1 4 . . 2 2 Critical Strikes 63 | . . . . . . . 2 3 . 11 7 . 8 . . 1 5 . 1 3 22 Meltdown 3 | . . . . . . . . . . 1 1 . . . . . . . . . 1 Destroy 33 | . . . . . . . 2 3 . 10 6 . 7 . . 1 . . . . 4 Corrupt 4 | . . . . . . . . . . . . . . . . . . . . . 4 Smash 10 | . . . . . . . . . . . . . 1 . . . 5 . 1 3 . Sever 13 | . . . . . . . . . . . . . . . . . . . . . 13 Melee Attacks 249 | . . . . 1 . . . 11 2 . . 13 1 . . 3 29 . 3 25 161 Impact 88 | . . . . 1 . . . 11 2 . . 13 1 . . 3 29 . 3 25 . Slashing 161 | . . . . . . . . . . . . . . . . . . . . . 161 Piercing . | . . . . . . . . . . . . . . . . . . . . . . Sneak Attacks 28 | . . . . 1 . . . . . . . . 1 . . 1 9 . . 2 14 Combat Hostiles 2 | . . . . . . . . . . . . . 1 . . . . . . . 1 Follow-up Attacks 12 | . . . . . . . . . . . . . . . . . . . . . 12 Damage Inflicted 37601 | . . 355 499 919 . 1637 1862 2931 1445 1291 1685 180 1268 1629 1153 222 2690 1074 4304 857 11600 Guns 5678 | . . 304 71 185 . 101 803 483 623 517 157 . 767 290 434 . 75 51 12 . 805 Cannons 4793 | . . . . 430 . . 69 895 294 447 805 . 249 178 147 112 . . . . 1167 Explosions 16592 | . . 51 428 249 . 1536 932 1553 528 327 723 . 132 1161 572 . 245 1023 3994 256 2882 Melee 10474 | . . . . 55 . . . . . . . 180 120 . . 104 2370 . 298 601 6746 Ramming 64 | . . . . . . . 58 . . . . . . . . 6 . . . . . Kinetic 3560 | . . 146 39 308 . 101 616 523 407 111 157 . 298 94 . 112 75 51 12 . 510 Thermal 8124 | . . . . 307 . . 256 1059 825 721 805 . 718 374 581 . . . . . 2478 Explosive 12275 | . . 51 428 249 . 1536 932 1187 213 327 723 . 132 361 570 . 245 1023 3994 256 48 Electromagnetic 3104 | . . 158 32 . . . . 162 . 132 . . . 800 2 . . . . . 1818 Impact 3728 | . . . . 55 . . . . . . . 180 120 . . 104 2370 . 298 601 . Slashing 6746 | . . . . . . . . . . . . . . . . . . . . . 6746 Piercing . | . . . . . . . . . . . . . . . . . . . . . . Highest Corruption 37 | . . . . 1 . 4 12 1 2 2 5 5 7 1 14 16 16 12 2 6 37 Average Corruption 9 | . . . . 1 . 4 9 1 1 2 4 5 6 1 8 14 12 11 2 3 26 Corruption Purged 4 | . . . . . . . . . . . . . . . . . 4 . . . . Corruption Blocked 14 | . . . . . . . . . . . . . . . . . . . . . 14 Effects 397 | . . . . 1 . 5 48 2 3 21 28 26 47 . 8 16 40 2 13 3 134 Message Errors 96 | . . . . 1 . 2 10 . . 4 10 5 10 . 3 4 15 1 2 3 26 Matter Fused 90 | . . . . . . . 11 . 2 4 5 10 11 . 2 3 9 . 4 . 29 Heat Flow Errors 49 | . . . . . . 1 8 . . 4 2 3 8 . . 4 3 . 4 . 12 Energy Discharges 38 | . . . . . . . 4 . . 2 3 2 4 . . 2 5 1 . . 15 Parts Rejected 9 | . . . . . . 1 2 . . 1 . . . . 2 . . . 1 . 2 Parts Fused 5 | . . . . . . . 2 . . . 1 . . . . 1 . . . . 1 Data Loss (minor) 50 | . . . . . . 1 6 1 . 3 3 3 8 . . 1 4 . 1 . 19 Data Loss (major) 20 | . . . . . . . 5 1 . . 1 2 2 . . . 2 . . . 7 Misfires 7 | . . . . . . . . . 1 1 1 . 1 . . . . . . . 3 Alerts 8 | . . . . . . . . . . 1 2 1 2 . . . 1 . 1 . . Misdirections 19 | . . . . . . . . . . . . . . . 1 1 1 . . . 16 Weapon Failures 6 | . . . . . . . . . . 1 . . 1 . . . . . . . 4 Overload Shots 50 | . . . . . . . 2 9 6 15 5 . 1 2 10 . . . . . . Effects 5 | . . . . . . . . . 1 2 . . 1 . 1 . . . . . . Energy Bleed 1 | . . . . . . . . . . . . . . . 1 . . . . . . Heat Surge 2 | . . . . . . . . . 1 . . . 1 . . . . . . . . Short Circuit 2 | . . . . . . . . . . 2 . . . . . . . . . . . Overflow Damage 4625 | . . . . 15 . . 95 205 74 10 73 152 120 41 . 64 1951 79 266 199 1281 Projectiles 347 | . . . . . . . . 3 43 2 73 . . . . . . . . . 226 Explosions 694 | . . . . . . . 95 202 31 8 . . . 41 . . . 79 153 . 85 Melee 3584 | . . . . 15 . . . . . . . 152 120 . . 64 1951 . 113 199 970 Knockbacks 13 | . . . . 1 . . 1 1 1 . . . . . . 3 1 . 1 4 . Impact 8 | . . . . . . . 1 . . . . . . . . 1 1 . 1 4 . Kinetic 5 | . . . . 1 . . . 1 1 . . . . . . 2 . . . . . Secondary . | . . . . . . . . . . . . . . . . . . . . . . Self-Inflicted Damage 786 | . . . 10 13 . 79 11 115 92 12 47 . . . 52 . . . . 118 237 Shots 24 | . . . 2 1 . 4 1 3 1 1 2 . . . 3 . . . . 1 5 Rammed . | . . . . . . . . . . . . . . . . . . . . . . Targets Rammed 13 | . . . . . . . 11 . . . . . . . . 2 . . . . . Kicked 13 | . . . . . . . 11 . . . . . . . . 2 . . . . . Crushed . | . . . . . . . . . . . . . . . . . . . . . . Highest Temperature 585 | . . 29 . 386 . 146 238 198 585 504 200 138 358 150 320 241 178 172 255 . 316 Average Temperature 102 | . . 9 . 126 . 78 81 86 211 101 61 69 117 82 133 118 62 100 112 . 79 Received Heat Transfer 2079 | . . 129 42 161 . . 72 288 99 192 135 . 295 36 . 27 63 57 81 . 402 Effects 10 | . . . . . . . . . 6 2 . . . . 2 . . . . . . Shutdowns 2 | . . . . . . . . . 1 1 . . . . . . . . . . . Energy Bleed 3 | . . . . . . . . . 1 1 . . . . 1 . . . . . . Interference 3 | . . . . . . . . . 3 . . . . . . . . . . . . Matter Decay 1 | . . . . . . . . . 1 . . . . . . . . . . . . Short Circuit 1 | . . . . . . . . . . . . . . . 1 . . . . . . Siege Activations . | . . . . . . . . . . . . . . . . . . . . . . Robots Corrupted 21 | . . . . . . . . . . . . 1 . 3 . 1 7 . 1 5 3 Combat Hostiles 11 | . . . . . . . . . . . . 1 . 3 . . 1 . 1 3 2 Parts Fried 49 | . . 1 . . . . . . . . . 1 1 4 . 4 11 . . 9 18 Impact Corruptions 112 | . . . . 1 . . . . . . . 9 3 . . 3 85 . 3 8 . Robots Melted 6 | . . . . . . . . 1 . 1 1 . 2 . . . . . . . 1 Combat Hostiles 6 | . . . . . . . . 1 . 1 1 . 2 . . . . . . . 1 Parts Melted 13 | . . . . 1 . . 1 2 1 . 4 . 4 . . . . . . . . Heat Transferred 8550 | . . . . 407 . . 666 1259 783 844 879 . 1197 507 648 . . . . . 1360 Parts Sabotaged 1 | . . . . . . . . . . . . . . . . . . . . . 1 Parts Stolen . | . . . . . . . . . . . . . . . . . . . . . . Parts Stripped . | . . . . . . . . . . . . . . . . . . . . . . Power Chain Reactions 7 | . . . . . . . . . . . . . . 2 . . . . . . 5 Alert | -11 -10 -10 -10 -9 -7 -7 -7 -6 -5 -5 -5 -5 -4 -4 -4 -4 -4 -4 -3 -3 -3 ------- Run | Yrd Mat Min Sub Rec Fac Was Fac Fac Fac Upp Upp Zhi Pro Fac Was Fac Upp War Pro Res Tes Peak Influence 1417 | . 33 111 . 336 80 69 239 624 288 . . . . 650 277 307 . . . 336 1417 Initial 344 | . . 12 . 295 80 28 48 18 104 . . . . 344 217 172 . . . 69 163 Average 242 | . 10 55 . 248 80 40 109 281 102 . . . . 439 248 263 . . . 215 385 Maximum Alert Level 4 | . . . . 1 . . 1 2 1 . . . . 2 1 1 . . . 1 4 Low Security (%) 48 | 100 100 100 . 18 100 100 89 19 85 . . . . . . 13 . . . 42 34 Level 1 42 | . . . . 81 . . 10 63 14 . . . . 64 100 86 . . . 57 43 Level 2 4 | . . . . . . . . 16 . . . . . 35 . . . . . . 6 Level 3 1 | . . . . . . . . . . . . . . . . . . . . . 5 Level 4 2 | . . . . . . . . . . . . . . . . . . . . . 9 Level 5 . | . . . . . . . . . . . . . . . . . . . . . . High Security . | . . . . . . . . . . . . . . . . . . . . . . Max Security . | . . . . . . . . . . . . . . . . . . . . . . Squads Dispatched 33 | . 1 . . . . . 6 4 3 . . . . 2 . 1 . . 1 3 12 Investigation 3 | . . . . . . . . . . . . . . . . . . . . 1 2 Extermination 11 | . . . . . . . 1 2 2 . . . . . . 1 . . . . 5 Reinforcement 10 | . 1 . . . . . 2 1 1 . . . . 1 . . . . . 2 2 Assault 4 | . . . . . . . . . . . . . . . . . . . 1 . 3 Garrison 5 | . . . . . . . 3 1 . . . . . 1 . . . . . . . Intercept . | . . . . . . . . . . . . . . . . . . . . . . Searches Triggered . | . . . . . . . . . . . . . . . . . . . . . . Construction Impeded 5 | . . . . . . . 2 . 1 . . . . 1 . . . . . . 1 Haulers Reinforced . | . . . . . . . . . . . . . . . . . . . . . . Active Scanning Responses . | . . . . . . . . . . . . . . . . . . . . . . Cargo Convoy Interrupts . | . . . . . . . . . . . . . . . . . . . . . . Stealth | -11 -10 -10 -10 -9 -7 -7 -7 -6 -5 -5 -5 -5 -4 -4 -4 -4 -4 -4 -3 -3 -3 --------- Run | Yrd Mat Min Sub Rec Fac Was Fac Fac Fac Upp Upp Zhi Pro Fac Was Fac Upp War Pro Res Tes Distress Signals 5 | . . . . . . . . 1 . . . . . . . . . 1 . 3 . Communications Jammed . | . . . . . . . . . . . . . . . . . . . . . . Distress Signals . | . . . . . . . . . . . . . . . . . . . . . . Times Spotted 280 | . 1 3 14 4 . 6 15 17 7 19 13 . 17 12 4 13 1 8 25 22 79 Peak Tracking Total 10 | . 1 2 4 2 . 5 4 4 3 7 4 . 5 5 3 8 1 7 10 7 8 Tactical Retreats 23 | . . . 4 . . . . 3 . 1 . . 1 . 1 2 . . 1 3 7 Traps | -11 -10 -10 -10 -9 -7 -7 -7 -6 -5 -5 -5 -5 -4 -4 -4 -4 -4 -4 -3 -3 -3 ------- Run | Yrd Mat Min Sub Rec Fac Was Fac Fac Fac Upp Upp Zhi Pro Fac Was Fac Upp War Pro Res Tes Traps Triggered 17 | . . . . . 1 . 3 . 1 . . . . 2 . . . 1 . 1 8 Indirectly 7 | . . . . . . . . . . . . . . 1 . . . . . . 6 Trap Hack Attempts . | . . . . . . . . . . . . . . . . . . . . . . Triggered . | . . . . . . . . . . . . . . . . . . . . . . Disarmed . | . . . . . . . . . . . . . . . . . . . . . . Reprogrammed . | . . . . . . . . . . . . . . . . . . . . . . Reused 2 | . . . . . . . . . . . . . 2 . . . . . . . . Traps Extracted . | . . . . . . . . . . . . . . . . . . . . . . Installed 2 | . . . . . . . . . . . . . 2 . . . . . . . . Triggered 6 | . . . . . . . . . . 1 . . 2 . . . . 1 . . 2 Most Traps Carried 2 | . . . . . . . . . . 1 1 1 2 . . . . . . . . Objects Rigged 8 | . . . . . . . . 8 . . . . . . . . . . . . . Exploded 3 | . . . . . . . . 3 . . . . . . . . . . . . . Machines | -11 -10 -10 -10 -9 -7 -7 -7 -6 -5 -5 -5 -5 -4 -4 -4 -4 -4 -4 -3 -3 -3 ---------- Run | Yrd Mat Min Sub Rec Fac Was Fac Fac Fac Upp Upp Zhi Pro Fac Was Fac Upp War Pro Res Tes Machines Disabled 50 | . . . 3 . . . 3 17 4 . 1 1 . 5 . . . 2 . 1 13 Max in Single Turn 8 | . . . 1 . . . 2 8 4 . 1 1 . 2 . . . 2 . 1 2 Garrison Access 3 | . . . . . . . 1 . . . . . . . . . . . . 1 1 Machines Repaired . | . . . . . . . . . . . . . . . . . . . . . . Machines Dismantled . | . . . . . . . . . . . . . . . . . . . . . . Machines Sabotaged . | . . . . . . . . . . . . . . . . . . . . . . Overloaded Fab Kills . | . . . . . . . . . . . . . . . . . . . . . . Hacking | -11 -10 -10 -10 -9 -7 -7 -7 -6 -5 -5 -5 -5 -4 -4 -4 -4 -4 -4 -3 -3 -3 --------- Run | Yrd Mat Min Sub Rec Fac Was Fac Fac Fac Upp Upp Zhi Pro Fac Was Fac Upp War Pro Res Tes Machines Accessed 48 | . 1 . . 8 2 . 4 5 2 . 1 9 1 . . 2 . . . 4 9 Terminals 20 | . 1 . . 4 2 . 1 4 . . . . 1 . . 1 . . . 1 5 Fabricators 3 | . . . . . . . 1 1 . . . . . . . . . . . . 1 Repair Stations 4 | . . . . . . . . . . . . . . . . 1 . . . 1 2 Recycling Units 7 | . . . . 3 . . 1 . 2 . . . . . . . . . . 1 . Scanalyzers . | . . . . . . . . . . . . . . . . . . . . . . Garrison Access 3 | . . . . . . . 1 . . . . . . . . . . . . 1 1 Total Hacks 126 | . 3 . . 20 4 . 9 11 5 . 1 48 2 . . 2 . . . 6 15 Successful 79 | . 3 . . 9 . . 4 2 2 . 1 48 2 . . 2 . . . 3 3 Failed 47 | . . . . 11 4 . 5 9 3 . . . . . . . . . . 3 12 Catastrophic 14 | . . . . 1 1 . 2 2 . . . . . . . . . . . 2 6 Database Lockouts . | . . . . . . . . . . . . . . . . . . . . . . Manual 27 | . 4 . . 9 4 . . 3 . . . . . . . . . . . 1 6 Terminals 42 | . 3 . . 10 4 . 1 10 . . . . 2 . . 1 . . . 2 9 Fabricators 4 | . . . . . . . 2 1 . . . . . . . . . . . . 1 Repair Stations 5 | . . . . . . . . . . . . . . . . 1 . . . 1 3 Recycling Units 17 | . . . . 8 . . 3 . 5 . . . . . . . . . . 1 . Scanalyzers . | . . . . . . . . . . . . . . . . . . . . . . Garrison Access 7 | . . . . . . . 3 . . . . . . . . . . . . 2 2 Terminal Hacks 64 | . 3 . . 6 . . . 1 . . 1 48 2 . . 1 . . . . 2 Record 39 | . . . . . . . . . . . 1 36 2 . . . . . . . . Part Schematic 5 | . . . . 1 . . . . . . . 4 . . . . . . . . . Robot Analysis 9 | . 3 . . 2 . . . . . . . 4 . . . . . . . . . Prototype ID Bank 4 | . . . . . . . . . . . . 4 . . . . . . . . . Open DSF 1 | . . . . . . . . . . . . . . . . 1 . . . . . Alert Level 1 | . . . . 1 . . . . . . . . . . . . . . . . . Unreport Threat 1 | . . . . . . . . 1 . . . . . . . . . . . . . Locate Traps 2 | . . . . . . . . . . . . . . . . . . . . . 2 Release Object 2 | . . . . 2 . . . . . . . . . . . . . . . . . Fabricator Hacks 3 | . . . . . . . 2 . . . . . . . . . . . . . 1 Load Schematic 1 | . . . . . . . 1 . . . . . . . . . . . . . . Build 2 | . . . . . . . 1 . . . . . . . . . . . . . 1 Repair Station Hacks 2 | . . . . . . . . . . . . . . . . 1 . . . 1 . Refit 2 | . . . . . . . . . . . . . . . . 1 . . . 1 . Recycling Unit Hacks 6 | . . . . 3 . . 1 . 2 . . . . . . . . . . . . Process 1 | . . . . . . . . . 1 . . . . . . . . . . . . Retrieve Matter 1 | . . . . . . . . . 1 . . . . . . . . . . . . Retrieve Components 4 | . . . . 3 . . 1 . . . . . . . . . . . . . . Scanalyzer . | . . . . . . . . . . . . . . . . . . . . . . Garrison Access Hacks 2 | . . . . . . . 1 . . . . . . . . . . . . 1 . Seal Access 2 | . . . . . . . 1 . . . . . . . . . . . . 1 . Unauthorized Hacks 2 | . . . . . . . . 1 . . . . . . . . . . . 1 . Terminals 2 | . . . . . . . . 1 . . . . . . . . . . . 1 . Assimilate 1 | . . . . . . . . . . . . . . . . . . . . 1 . Detonate 1 | . . . . . . . . 1 . . . . . . . . . . . . . Fabricators . | . . . . . . . . . . . . . . . . . . . . . . Repair Stations . | . . . . . . . . . . . . . . . . . . . . . . Recycling Units . | . . . . . . . . . . . . . . . . . . . . . . Scanalyzers . | . . . . . . . . . . . . . . . . . . . . . . Garrison Access . | . . . . . . . . . . . . . . . . . . . . . . Data Cores Recovered . | . . . . . . . . . . . . . . . . . . . . . . Used . | . . . . . . . . . . . . . . . . . . . . . . Hacking Detections 31 | . 1 . . 5 2 . 2 5 2 . . . 1 . . 1 . . . 3 9 Full Trace Events 4 | . . . . 1 . . . . . . . . . . . . . . . 1 2 Feedback Events 1 | . . . . 1 . . . . . . . . . . . . . . . . . Corruption 1 | . . . . 1 . . . . . . . . . . . . . . . . . Feedback Blocked . | . . . . . . . . . . . . . . . . . . . . . . Robot Schematics Acquired 8 | . . . . . . . . . . . . . . . . . . . . . 8 Robots Built 4 | . . . . . . . . . . . . . . . . . . . . . 4 Authchips . | . . . . . . . . . . . . . . . . . . . . . . Time 68 | . . . . . . . . . . . . . . . . . . . . . 68 Total Robot Build Rating 32 | . . . . . . . . . . . . . . . . . . . . . 32 Part Schematics Acquired 20 | . . . . 1 . . . . . . . 4 . . . . . . . . 15 Parts Built 1 | . . . . . . . 1 . . . . . . . . . . . . . . Authchips 1 | . . . . . . . 1 . . . . . . . . . . . . . . Time 25 | . . . . . . . 25 . . . . . . . . . . . . . . Total Part Build Rating 1 | . . . . . . . 1 . . . . . . . . . . . . . . Parts Repaired . | . . . . . . . . . . . . . . . . . . . . . . Time . | . . . . . . . . . . . . . . . . . . . . . . Parts Recycled . | . . . . . . . . . . . . . . . . . . . . . . Recycled Matter 82 | . . . . . . . . . 82 . . . . . . . . . . . . Retrieved Matter 82 | . . . . . . . . . 82 . . . . . . . . . . . . Retrieved Components 11 | . . . . 8 . . 3 . . . . . . . . . . . . . . Parts Scanalyzed . | . . . . . . . . . . . . . . . . . . . . . . Part Schematics Acquired . | . . . . . . . . . . . . . . . . . . . . . . Parts Damaged . | . . . . . . . . . . . . . . . . . . . . . . Bothacking | -11 -10 -10 -10 -9 -7 -7 -7 -6 -5 -5 -5 -5 -4 -4 -4 -4 -4 -4 -3 -3 -3 ------------ Run | Yrd Mat Min Sub Rec Fac Was Fac Fac Fac Upp Upp Zhi Pro Fac Was Fac Upp War Pro Res Tes Used RIF Installer . | . . . . . . . . . . . . . . . . . . . . . . Robots Hacked . | . . . . . . . . . . . . . . . . . . . . . . Non-combat . | . . . . . . . . . . . . . . . . . . . . . . Combat . | . . . . . . . . . . . . . . . . . . . . . . Robot Hacks Applied . | . . . . . . . . . . . . . . . . . . . . . . Relay Couplers Released 4 | . . . . . . . . . . . . . . . . . . . . . 4 Machine Destruction 4 | . . . . . . . . . . . . . . . . . . . . . 4 Fabnet Peak Effective % . | . . . . . . . . . . . . . . . . . . . . . . Robots Rewired 8 | . . . . . . . . . . 2 . . . . . . . . 2 . 4 Allies Hacked . | . . . . . . . . . . . . . . . . . . . . . . Hacks Repelled . | . . . . . . . . . . . . . . . . . . . . . . Allies | -11 -10 -10 -10 -9 -7 -7 -7 -6 -5 -5 -5 -5 -4 -4 -4 -4 -4 -4 -3 -3 -3 -------- Run | Yrd Mat Min Sub Rec Fac Was Fac Fac Fac Upp Upp Zhi Pro Fac Was Fac Upp War Pro Res Tes Total Allies 12 | . . . . . . . . . . 2 . . . . . . . . 2 . 8 Largest Group 4 | . . . . . . . . . . 2 . . . . . . . . 2 . 4 Highest-Rated Group 237 | . . . . . . . . . . 59 . . . . . . . . 111 . 237 Highest-Rated Ally 145 | . . . . . . . . . . 30 . . . . . . . . 64 . 145 Total Orders . | . . . . . . . . . . . . . . . . . . . . . . Ally Attacks 127 | . . . . . . . . . . 15 . . . . . . . . 11 . 101 Total Damage 4219 | . . . . . . . . . . 312 . . . . . . . . 273 . 3634 Kills 17 | . . . . . . . . . . 2 . . . . . . . . 1 . 14 Allies Corrupted 2 | . . . . . . . . . . . . . . . . . . . . . 2 Allies Melted 1 | . . . . . . . . . . 1 . . . . . . . . . . . Intel | -11 -10 -10 -10 -9 -7 -7 -7 -6 -5 -5 -5 -5 -4 -4 -4 -4 -4 -4 -3 -3 -3 ------- Run | Yrd Mat Min Sub Rec Fac Was Fac Fac Fac Upp Upp Zhi Pro Fac Was Fac Upp War Pro Res Tes Robot Analysis Total 9 | . 3 . . 2 . . . . . . . 4 . . . . . . . . . Derelict Logs Recovered 6 | . . . 1 . . . . . . 1 . . 1 . . . 3 . . . . Drone Launches . | . . . . . . . . . . . . . . . . . . . . . . Drone Recoveries . | . . . . . . . . . . . . . . . . . . . . . . Exploration | -11 -10 -10 -10 -9 -7 -7 -7 -6 -5 -5 -5 -5 -4 -4 -4 -4 -4 -4 -3 -3 -3 ------------- Run | Yrd Mat Min Sub Rec Fac Was Fac Fac Fac Upp Upp Zhi Pro Fac Was Fac Upp War Pro Res Tes Turns Passed 16802 | 27 21 200 311 826 90 187 1255 843 1055 1664 955 1319 1527 142 173 401 1000 155 1494 642 2515 Spaces Moved 10632 | 37 39 120 271 624 85 145 767 742 754 438 368 466 550 30 188 497 745 98 1121 819 1728 Core 2245 | 37 39 120 15 44 . . . . . . . . . . 151 352 . . 616 817 54 Treads 403 | . . . . . 64 10 . 88 218 . . . . . . . . . . . 23 Legs 3702 | . . . . 46 . . 602 110 . . 140 148 513 25 . 1 581 98 505 . 933 Wheels 1937 | . . . 256 534 21 135 99 . 100 438 228 . . 5 37 . . . . . 84 Hover 1516 | . . . . . . . 66 544 436 . . 318 37 . . . 3 . . . 112 Flight 829 | . . . . . . . . . . . . . . . . 144 161 . . 2 522 Fastest Speed 47 | 50 50 50 80 50 95 99 78 70 76 187 211 235 235 150 50 50 51 141 50 50 47 Average Speed 123 | 50 50 70 86 97 100 103 102 77 106 333 225 235 235 246 70 59 115 141 126 61 96 Slowest Speed 459 | 50 50 100 100 300 119 119 152 134 187 459 459 235 235 334 210 104 150 141 250 158 180 Overloaded Moves 44 | . . . . . . . . . . . . . . . . . . . . . 44 Propulsion Burnouts . | . . . . . . . . . . . . . . . . . . . . . . Robots Hopped . | . . . . . . . . . . . . . . . . . . . . . . Cave-ins Triggered 2 | . . . . . . 1 . . . . . . . . . . . . . . 1 Exploration Rate (%) 44 | 4 11 25 9 94 4 80 19 19 13 64 57 100 78 2 77 17 76 15 97 21 88 Regions Visited 21 Branch Regions 11 Pre-discovered Areas 5 | . . 1 . . . . . . . . . 3 . . . . 1 . . . . Known Exits Taken 12 | . . . . . . . 1 1 1 1 1 1 1 . . 1 1 1 1 1 . Unknown Exits Taken 5 | 1 1 1 1 1 . . . . . . . . . . . . . . . . . Scrap Searched 10 | . . . . . . . . . . 2 3 . 3 . . . 1 . 1 . . Spaces Dug 156 | . . . 33 . . . 2 10 2 . . 1 . 5 . 2 5 . 37 11 48 Terrain Destroyed 1290 | . . 20 55 98 . 75 47 98 52 63 69 1 37 16 45 2 35 84 264 29 200 Melee 61 | . . . . . . . . 10 2 . . 1 . . . 2 5 . . 11 30 Projectile 45 | . . . . 5 . . 3 13 2 4 6 . 5 2 . . . . . . 5 AOE 1182 | . . 20 55 93 . 75 44 74 48 58 63 . 32 14 45 . 30 84 264 18 165 Terrain Rammed . | . . . . . . . . . . . . . . . . . . . . . . Walls Destroyed . | . . . . . . . . . . . . . . . . . . . . . . Machines Disabled . | . . . . . . . . . . . . . . . . . . . . . . Actions | -11 -10 -10 -10 -9 -7 -7 -7 -6 -5 -5 -5 -5 -4 -4 -4 -4 -4 -4 -3 -3 -3 --------- Run | Yrd Mat Min Sub Rec Fac Was Fac Fac Fac Upp Upp Zhi Pro Fac Was Fac Upp War Pro Res Tes Total 13134 | 43 40 193 314 793 90 159 1162 910 960 584 423 666 680 63 212 593 819 106 1175 910 2239 Wait 1121 | . . 47 . 94 . 3 281 89 142 59 5 169 32 1 3 40 19 3 8 38 88 Move 10613 | 36 38 119 270 623 85 144 766 741 753 437 367 465 549 30 187 496 744 97 1120 818 1728 Hop . | . . . . . . . . . . . . . . . . . . . . . . Pick Up 142 | 5 1 2 8 10 2 . 20 13 13 3 3 3 6 5 1 6 5 . 2 3 31 Fast Attach 139 | 2 . . . 6 . . 9 2 5 3 2 5 4 2 4 14 4 . 3 4 70 Attach 83 | . . 2 5 4 2 . 6 . 3 4 2 4 9 5 2 2 3 1 4 5 20 Detach 53 | . . . . 2 1 . 2 . . 1 1 1 5 . . 5 2 . 4 9 20 Swap 66 | . . 1 5 5 . 1 11 9 5 5 1 . 8 1 2 1 . . 1 . 10 Drop 186 | . 1 . 1 17 . . 14 5 14 4 3 6 8 1 6 19 7 . 6 8 66 Fire 430 | . . 22 25 31 . 11 42 40 23 42 39 . 56 18 7 4 6 5 19 . 40 Melee 230 | . . . . 1 . . . 11 2 . . 13 1 . . 3 29 . 3 25 142 Ram . | . . . . . . . . . . . . . . . . . . . . . . Kick 13 | . . . . . . . 11 . . . . . . . . 2 . . . . . Crush . | . . . . . . . . . . . . . . . . . . . . . . Escape Stasis 5 | . . . . . . . . . . . . . . . . . . . . . 5 Rewire 50 | . . . . . . . . . . 26 . . . . . . . . 5 . 19 Trap 2 | . . . . . . . . . . . . . 2 . . . . . . . . Miscellaneous 1 | . . . . . . . . . . . . . . . . 1 . . . . . Route ------- -11/Scrapyard -10/Materials -10/Mines -10/Subcaves (discovered 2 exits: Mat / *Rec) -9/Recycling -7/Factory -7/Waste -7/Factory -6/Factory -5/Factory -5/Upper Caves -5/Upper Caves -5/Zhirov -4/Proximity Caves -4/Factory -4/Waste -4/Factory -4/Upper Caves (discovered 2 exits: *Upp / *War) -4/Warlord -3/Proximity Caves -3/Research -3/Testing (discovered 1 exit: *Res) History --------- Turn | Location | Event 5 | -11/Scrapyard | Discovered new exit (range 15) 28 | -11/Scrapyard | Entered Materials 43 | -10/Materials | Discovered new exit (range 6) 49 | -10/Materials | Entered Mines 61 | -10/Mines | Learned location of Storage (-9) 67 | -10/Mines | Met a Derelict bent on vengeance 232 | -10/Mines | Discovered new exit (range 11) 249 | -10/Mines | Entered Subcaves 301 | -10/Subcaves | Build established: Mutant 304 | -10/Subcaves | Identified exit to Materials 372 | -10/Subcaves | Discovered new exit (range 15) 413 | -10/Subcaves | Ambushed by Subdweller buried in earth 560 | -10/Subcaves | Entered Recycling 728 | -9/Recycling | Scanned before Scraplab entrance 738 | -9/Recycling | Angered Scraplab inhabitants 881 | -9/Recycling | Found Prototype Device 881 | -9/Recycling | Identified Scrap Engine 1250 | -9/Recycling | Build established: Construct 1367 | -9/Recycling | Discovered new exit (range 16) 1386 | -9/Recycling | Entered Factory 1386 | -7/Factory | Evolved 6 slots: Propulsion x3, Utility x3 1476 | -7/Factory | Sucked down chute 1476 | -7/Factory | Entered Waste 1491 | -7/Waste | Spotted C-40 Crusher 1519 | -7/Waste | Spotted C-40 Crusher 1523 | -7/Waste | Spotted C-40 Crusher 1523 | -7/Waste | Crushed by Compactor (1 part destroyed, 1 dropped) 1556 | -7/Waste | Destroyed C-40 Crusher 1560 | -7/Waste | Spotted C-40 Crusher 1571 | -7/Waste | Crushed by falling debris 1595 | -7/Waste | Spotted C-40 Crusher 1600 | -7/Waste | Spotted C-40 Crusher 1633 | -7/Waste | Discovered new exit (range 10) 1663 | -7/Waste | Entered Factory 2263 | -7/Factory | Garrison activated, responded to threat 2484 | -7/Factory | System corruption reached 10% 2576 | -7/Factory | Discovered new exit (range 15) 2636 | -7/Factory | Identified exit to Factory 2670 | -7/Factory | Fabricated Huge Storage Unit (x1) 2918 | -7/Factory | Entered another Factory area 2918 | -6/Factory | Evolved 2 slots: Power x1, Utility x1 3304 | -6/Factory | Garrison activated, responded to threat 3746 | -6/Factory | Discovered new exit (range 9) 3753 | -6/Factory | Identified exit to Factory 3761 | -6/Factory | Entered another Factory area 3761 | -5/Factory | Evolved 2 slots: Utility x2 3778 | -5/Factory | Discovered new exit (range 15) 3789 | -5/Factory | Identified exit to Upper Caves 4816 | -5/Factory | Entered Upper Caves 4946 | -5/Upper Caves | Identified exit to Upper Caves 5896 | -5/Upper Caves | Attracted the attention of an 0b10 outpost 5953 | -5/Upper Caves | Destroyed 7 combat bots 6480 | -5/Upper Caves | Entered another Upper Caves area 6793 | -5/Upper Caves | Attracted the attention of an 0b10 checkpoint 7085 | -5/Upper Caves | Found Alien Artifact 7095 | -5/Upper Caves | Identified Dimensional Node Initializer 7095 | -5/Upper Caves | Initialized slip node 7369 | -5/Upper Caves | Discovered new exit (range 10) 7432 | -5/Upper Caves | Identified exit to Zhirov 7435 | -5/Upper Caves | Entered Zhirov 7435 | -5/Zhirov | Discovered new exit (range 3) 7438 | -5/Zhirov | Identified exit to Proximity Caves 7552 | -5/Zhirov | Learned location of Quarantine (-2) 7552 | -5/Zhirov | Learned location of Testing (-3) 7552 | -5/Zhirov | Learned location of Command (-1) 7614 | -5/Zhirov | Found Alien Artifact 7650 | -5/Zhirov | Found Alien Artifact 7650 | -5/Zhirov | Identified Integrated Dissipator 7650 | -5/Zhirov | Installed Integrated Dissipator, increased core heat dissipation (+20) 7915 | -5/Zhirov | Cloak Generator disabled 7926 | -5/Zhirov | Enhanced Grunts warped into view 7976 | -5/Zhirov | Lost 7 allies 8754 | -5/Zhirov | Entered Proximity Caves 8879 | -4/Proximity Caves | Spotted B-86 Titan 9048 | -4/Proximity Caves | Destroyed B-86 Titan 9111 | -4/Proximity Caves | Spotter reported a threat 9164 | -4/Proximity Caves | Spotter reported a threat 9637 | -4/Proximity Caves | Learned Research emergency access door positions 10086 | -4/Proximity Caves | Lost 3 parts (1p1u1w) 10152 | -4/Proximity Caves | Discovered new exit (range 11) 10180 | -4/Proximity Caves | Identified exit to Factory 10281 | -4/Proximity Caves | Entered Factory 10281 | -4/Factory | Evolved 2 slots: Utility x1, Weapon x1 10375 | -4/Factory | Garrison activated, responded to threat 10393 | -4/Factory | Lost 4 parts (1n2u1w) 10423 | -4/Factory | Sucked down chute 10423 | -4/Factory | Entered Waste 10430 | -4/Waste | Spotted C-40 Crusher 10438 | -4/Waste | EMP discharged 10452 | -4/Waste | Lost 3 parts (1p2u) 10487 | -4/Waste | Destroyed C-40 Crusher 10488 | -4/Waste | Spotted C-40 Crusher 10508 | -4/Waste | Crushed by Compactor (1 part destroyed, 1 dropped) 10511 | -4/Waste | Crushed by Compactor (1 part destroyed, 2 dropped) 10514 | -4/Waste | Crushed by Compactor (1 part destroyed, 1 dropped) 10524 | -4/Waste | Spotted C-40 Crusher 10538 | -4/Waste | EMP discharged 10538 | -4/Waste | System corruption reached 10% 10545 | -4/Waste | Lost 3 parts (1u2w) 10545 | -4/Waste | Spotted C-40 Crusher 10551 | -4/Waste | Spotted C-40 Crusher 10590 | -4/Waste | Discovered new exit (range 12) 10591 | -4/Waste | Spotted C-40 Crusher 10596 | -4/Waste | Entered Factory 10659 | -4/Factory | Spotted B-86 Titan 10741 | -4/Factory | Found Prototype Processor 10741 | -4/Factory | Identified Exp. Signal Interpreter 10797 | -4/Factory | Found Quantum Capacitor 10850 | -4/Factory | Build established: Mutant 10992 | -4/Factory | Discovered new exit (range 9) 10996 | -4/Factory | Identified exit to Upper Caves 10997 | -4/Factory | Entered Upper Caves 11048 | -4/Upper Caves | Attracted the attention of an 0b10 checkpoint 11528 | -4/Upper Caves | Build established: Assassin 11766 | -4/Upper Caves | A Derelict revealed a hidden shortcut to "reach the base" 11767 | -4/Upper Caves | Identified exit to Warlord 11779 | -4/Upper Caves | Learned Research garrison access intel 11883 | -4/Upper Caves | Discovered new exit (range 9) 11904 | -4/Upper Caves | Identified exit to Upper Caves 11997 | -4/Upper Caves | Entered Warlord 12049 | -4/Warlord | System corruption cleaned by Quarantine Array 12054 | -4/Warlord | Attacked by Warlord forces 12095 | -4/Warlord | Warlord's base attacked by MAIN.C 12118 | -4/Warlord | Discovered new exit (range 14) 12151 | -4/Warlord | Identified exit to Proximity Caves 12152 | -4/Warlord | Entered Proximity Caves 12224 | -3/Proximity Caves | Spotted B-86 Titan 12896 | -3/Proximity Caves | Attracted the attention of an 0b10 outpost 12978 | -3/Proximity Caves | Destroyed 9 combat bots 13586 | -3/Proximity Caves | Discovered new exit (range 12) 13601 | -3/Proximity Caves | Attracted the attention of an 0b10 checkpoint 13646 | -3/Proximity Caves | Identified exit to Research 13646 | -3/Proximity Caves | Entered Research 13646 | -3/Research | Evolved 2 slots: Utility x1, Weapon x1 13647 | -3/Research | Identified exit to Testing 13649 | -3/Research | Loaded intel: 4 garrison access locations 14038 | -3/Research | Found Gamma Bomb Array 14288 | -3/Research | Entered Testing 14363 | -3/Testing | Fabricated S-43 Plague? 14445 | -3/Testing | System corruption reached 10% 14464 | -3/Testing | Lost 4 allies 14478 | -3/Testing | Lost 3 parts (3u) 14884 | -3/Testing | Build established: Scavenger-Mutant 15184 | -3/Testing | Spotted Alpha 7 15217 | -3/Testing | Destroyed Alpha 7 15227 | -3/Testing | Found Prototype Ballistic Gun 15227 | -3/Testing | Identified Multirail 15229 | -3/Testing | Found Prototype Energy Gun 15229 | -3/Testing | Identified Enh. Gamma Rifle 15247 | -3/Testing | Found Prototype Device 15247 | -3/Testing | Identified Exp. ECM Suite 15250 | -3/Testing | Found Prototype Processor 15250 | -3/Testing | Identified Exp. Target Analyzer 15253 | -3/Testing | Found Prototype Processor 15253 | -3/Testing | Identified Exp. Targeting Computer 15265 | -3/Testing | Rewired 2O-41O(K) 15270 | -3/Testing | Rewired KE-7XI(K) 15282 | -3/Testing | Rewired G6-CQ3(K) 15341 | -3/Testing | Found Prototype Energy Cannon 15341 | -3/Testing | Identified Hpw. Disruptor Cannon 15459 | -3/Testing | Spotted Striker 15560 | -3/Testing | Found Prototype Hackware 15560 | -3/Testing | Identified System Mapper 15657 | -3/Testing | Crushed by falling debris 15769 | -3/Testing | Found Prototype Energy Gun 15769 | -3/Testing | Identified Warp Gun 15846 | -3/Testing | Core integrity fell below 50% 15849 | -3/Testing | System corruption reached 30% 15895 | -3/Testing | Lost 9 parts (5n1u3w) 16005 | -3/Testing | Found Prototype Leg 16005 | -3/Testing | Identified Myomer Exoskeleton 16040 | -3/Testing | Discovered new exit (range 13) 16051 | -3/Testing | Identified exit to Research 16093 | -3/Testing | Spotted PG-QQLG756NL1 16098 | -3/Testing | Rewired PG-QQLG756NL1 16335 | -3/Testing | Found Prototype Energy Cannon 16335 | -3/Testing | Identified Potential Cannon 16338 | -3/Testing | Found Prototype Energy Cannon 16338 | -3/Testing | Identified Imp. Potential Cannon 16421 | -3/Testing | Scanned by Researcher 16538 | -3/Testing | First assault squad dispatched 16662 | -3/Testing | Lost 3 parts (1u2w) 16755 | -3/Testing | Spotted Striker 16761 | -3/Testing | Spotted Alpha 7 16765 | -3/Testing | Core integrity fell below 20% 16796 | -3/Testing | Found Prototype Device 16796 | -3/Testing | Identified AEGIS Remote Shield 16803 | -3/Testing | Destroyed by Striker with Plasma Lance Last Messages --------------- 16779_ Exp. Cooling System destroyed. 16779_ Destroyed Adv. Heat Sink. 16779_ Destroyed Prototype Device. 16779_ Testing Mainframe disabled. 16779_ Destroyed Lgt. Quantum Reactor. 16783_ Penetrated by Slug. 16783_ Imp. Potential Cannon destroyed. 16786_ Slug penetrates Striker. 16786_ Penetrated by Slug. 16786_ Slug penetrates Wall. 16786_ Critical hit (Impale). 16788_ ALERT: Significant disruption in Zone 7A, assault force dispatched. 16791_ Reinforced Shell breached. 16793_ FIRPJ#V8 WIBBBGKRAC>MD 16796_ Acquired Prototype Device. 16796_ Identified AEGIS Remote Shield. 16800_ Slug penetrates Striker. 16800_ Slug penetrates Wall. 16803_ Slug penetrates Striker. Map ----- +----------------------------------------------------+ | ???????# %"????????????????????????????# """#??? | | ???##### #??????????###########???????# "#?## | | ??##"" " #??????????# #???????# #?# | | #" """ %############"" """ #???????##/####### | | / %^^ #"T """ ######### + | | / ^ ! #"" """ ##! + ####### | | # #" # / ## # #?????# | | ??# ## !% # ## + #?????# | | ??# ## ! # ! ## # #?????# | | ??## ## + ## ! # #?????# | | ??# ## "########### # #?????# | | ??### #### # ####"####### #?????## | | ????####?### % # """" # ! # #?###### | | ????????## # !####" " """" # """"" # #?# ## | | ????????# #%!# # " " """ # """"" + #?# ## | | ????????# #! # # " """ # """"" # #?# ## | | ????????## # # # " " # # #?# ## | | ?????????# # # # " """################ #?# ## | | ?????????### ### " #?# ## | | ???????????# ####" #?# !## | | ??########## #??#######+;### """" ###%| ## | | ??# # #?????# ## """" !""! ## | ## | | ??# # #?????#"" 7"## """"[!!*" ## !! + | | ??# # #?????#""" K"## """"% %"! ## =+ | | ??# # #?????#"" "K### [ ## % # | | ??# + #?????#"" "@#?# =######## | | ??# # #?????#"""###?# %%== = | | ??# ## #?????####????# ^ ^ ^[!% | | ??# ## #?????????????# ! | | ??# ##[############### ^ | | ??###########=##|! # | | ??# ####!##[!| """ # | | ? #! + [!%+ " # ! | | # ## %!## ! """ # !% | | # ## !##% ! + ! | | ?#%! ## ##[ " # ""T"" % % | | ?##]! ####### """ # """"" ! | | ##=########????# """ ##+######+########### | | #"##???????????# """ # # =" | | =*#?????######?# # ! % # " | | [ #?????# """ ## + ! "! ###" | | #?????#""T""## # """ """ #?#" | | ###????##"" ""############### """" " #?## | | ???????# #?????# "" """ #??# | | ???????# """ """"" #?????# #??# | | ##?????# """ """"" #?????##############"####??# | | ####??# """ """"" #???????????????????##?????# | | %]#??# """"" #??????????????????????????# | | %#??# #??????????????????????????# | | #??###+####/####"##???????????????????######## | +----------------------------------------------------+ Best States ------------- Heat Dissipation 109 Energy Generation 45 Energy Capacity 1805 Matter Stores 369 Matter Capacity 700 Sight Range 22 Robot Scan Range 18 Terrain Scan Range 24 Terrain Scan Density 285 ECM Strength 3 Additional Mass Support 9 Corruption Block 14 Armor Coverage 450 Resistance: KI 25 Resistance: TH 25 Power Shielding 66 Propulsion Shielding 90 Evasion (%) 69 Targeting Accuracy 12 Melee Accuracy 6 Launcher Accuracy 30 Target Analysis 14 Armor Integrity Analysis 40 Recoil Reduction 4 Particle Charging 30 Offensive Hacking 20 Authchip Count 1 Item Schematics ----------------- Huge Storage Unit | -9/Recycling | Hacked Assault Drone Bay | -5/Zhirov | Free Exp. Heat Sink | -5/Zhirov | Free Exp. Optical Array | -5/Zhirov | Free Imp. Arc Thrower | -5/Zhirov | Free Imp. Diametric Drive | -3/Testing | Archive Prc. Phase Gun | -3/Testing | Archive Exp. Thermal Shield | -3/Testing | Archive Gravity Neutralizer | -3/Testing | Archive Adv. Dynamic Insulation System | -3/Testing | Archive Neutron Missile Launcher | -3/Testing | Archive Hvy. Antimatter Reactor | -3/Testing | Archive Mni. Smartbomb Launcher | -3/Testing | Archive Exp. EM Disruption Field | -3/Testing | Archive Tesla Bomb Launcher | -3/Testing | Archive Imp. Matter Compressor | -3/Testing | Archive Com. Mass Driver | -3/Testing | Archive Thunder Hammer | -3/Testing | Archive Imp. Energy Mantle | -3/Testing | Archive Enh. Force Rifle | -3/Testing | Archive Robot Schematics ------------------ T-07 Excavator | -3/Testing | Archive X-77 Beamer | -3/Testing | Archive R-10 Processor | -3/Testing | Archive A-15 Conveyor | -3/Testing | Archive P-70 Sage | -3/Testing | Archive K-01 Serf | -3/Testing | Archive S-43 Plague | -3/Testing | Archive R-06 Scavenger | -3/Testing | Archive Fabricated ------------ Huge Storage Unit | x1 | -7/Factory | Authchip S-43 Plague | x4 | -3/Testing | Preloaded Alien Tech Used ----------------- Dimensional Node Initializer Integrated Dissipator Achievements -------------- Batter Up Max Potential Challenges ------------ None Game ------ Seed ShrapnelSuspensionMonowheel Manual? 0 Play Time 03:17:47 Cumulative 126.6 hours Start 2025.01.04 @ 09:07:11 End 2025.01.05 @ 09:37:38 Sessions 3 Manual Loads 0 Difficulty Rogue Special Mode None Game No. 159 Rogue 159 Adventurer 0 Explorer 0 Win Type - Total 1 Types 1/0/0/0/0/0/0/0/0 Lore% 54 Gallery% 69 Achievement% 55 Wizard Run 0 Options --------- Layout 1 ASCII 0 Keyboard 0 Movement Numpad Keybinds 0 Fullscreen 1 Font 24/Smallcaps Map View 50x35 Zoom Use 0% Tactical HUD 1 Map Filters NONE Filters NONE Steam 1 RUN: e1e8b1a7-db35-436a-a9c4-157f3c07268d